[Event "Titled Tuesday Blitz March 07 Late 2023"]
[White "Rian, Kapriaga"]
[Black "Desideri, Ricardo Maruchi"]
[WhiteFideId "7103263"]
[BlackFideId "2110440"]
[WhiteElo "2358"]
[BlackElo "1945"]
[Result "1-0"]
[Round "05"]
[TimeControl "180+2"]
[Date "2023.03.07"]
[WhiteClock "0:01:14"]
[BlackClock "0:00:08"]

1. d4 {[%clk 0:03:00]}  Nf6 {[%clk 0:02:58]} 2. Nf3 {[%clk 0:03:00]}  d6 {[%clk 0:02:52]} 3. Nc3 {[%clk 0:02:56]}  g6 {[%clk 0:02:46]} 4. Bf4 {[%clk 0:02:52]}  Bg7 {[%clk 0:02:43]} 5. e3 {[%clk 0:02:52]}  O-O {[%clk 0:02:42]} 6. Be2 {[%clk 0:02:51]}  Nc6 {[%clk 0:02:40]} 7. h4 {[%clk 0:02:50]}  Re8 {[%clk 0:02:35]} 8. h5 {[%clk 0:02:46]}  Nxh5 {[%clk 0:02:33]} 9. Rxh5 {[%clk 0:02:43]}  gxh5 {[%clk 0:02:33]} 10. Qd2 {[%clk 0:02:40]}  e5 {[%clk 0:02:31]} 11. Bg3 {[%clk 0:02:39]}  e4 {[%clk 0:02:20]} 12. Ng1 {[%clk 0:02:31]}  Qg5 {[%clk 0:02:17]} 13. O-O-O {[%clk 0:02:15]}  h4 {[%clk 0:02:16]} 14. Bf4 {[%clk 0:02:13]}  Qa5 {[%clk 0:02:07]} 15. Nh3 {[%clk 0:02:05]}  Bxh3 {[%clk 0:01:29]} 16. gxh3 {[%clk 0:02:04]}  Kh8 {[%clk 0:01:28]} 17. Rg1 {[%clk 0:02:02]}  a6 {[%clk 0:01:10]} 18. Bc4 {[%clk 0:02:00]}  Re7 {[%clk 0:00:58]} 19. Nd5 {[%clk 0:01:57]}  Qxd2+ {[%clk 0:00:51]} 20. Kxd2 {[%clk 0:01:56]}  Rd7 {[%clk 0:00:47]} 21. Rg4 {[%clk 0:01:45]}  b5 {[%clk 0:00:46]} 22. Bb3 {[%clk 0:01:45]}  Na5 {[%clk 0:00:43]} 23. Rxh4 {[%clk 0:01:44]}  Nxb3+ {[%clk 0:00:43]} 24. axb3 {[%clk 0:01:43]}  a5 {[%clk 0:00:36]} 25. Bg5 {[%clk 0:01:39]}  a4 {[%clk 0:00:31]} 26. bxa4 {[%clk 0:01:38]}  bxa4 {[%clk 0:00:31]} 27. Bf6 {[%clk 0:01:34]}  a3 {[%clk 0:00:24]} 28. bxa3 {[%clk 0:01:32]}  Rxa3 {[%clk 0:00:22]} 29. Rg4 {[%clk 0:01:31]}  Bxf6 {[%clk 0:00:13]} 30. Nxf6 {[%clk 0:01:29]}  Rd8 {[%clk 0:00:13]} 31. h4 {[%clk 0:01:26]}  c5 {[%clk 0:00:11]} 32. d5 {[%clk 0:01:22]}  c4 {[%clk 0:00:11]} 33. h5 {[%clk 0:01:21]}  c3+ {[%clk 0:00:11]} 34. Ke2 {[%clk 0:01:19]}  Ra2 {[%clk 0:00:10]} 35. h6 {[%clk 0:01:18]}  Rxc2+ {[%clk 0:00:10]} 36. Kf1 {[%clk 0:01:17]}  Rc1+ {[%clk 0:00:09]} 37. Kg2 {[%clk 0:01:16]}  c2 {[%clk 0:00:09]} 38. Rg7 {[%clk 0:01:15]}  Rg1+ {[%clk 0:00:08]} 39. Kxg1 {[%clk 0:01:15]}  c1=Q+ {[%clk 0:00:08]} 40. Kg2 {[%clk 0:01:14]} 1-0


[Site "https://www.chess.com"]

[Event "Titled Tuesday Blitz March 07 Late 2023"]
[White "Needleman, Gaston"]
[Black "tandercat"]
[WhiteFideId "113735"]
[WhiteElo "2358"]
[BlackElo "1908"]
[Result "1-0"]
[Round "05"]
[TimeControl "180+2"]
[Date "2023.03.07"]
[WhiteClock "0:00:26"]
[BlackClock "0:00:01"]

1. e4 {[%clk 0:02:17]}  c5 {[%clk 0:02:58]} 2. Nf3 {[%clk 0:02:16]}  Nc6 {[%clk 0:02:57]} 3. d4 {[%clk 0:02:17]}  cxd4 {[%clk 0:02:58]} 4. Nxd4 {[%clk 0:02:17]}  e5 {[%clk 0:02:58]} 5. Nb5 {[%clk 0:02:16]}  d6 {[%clk 0:02:58]} 6. c4 {[%clk 0:02:16]}  Be7 {[%clk 0:02:56]} 7. Be2 {[%clk 0:02:15]}  f5 {[%clk 0:02:53]} 8. N1c3 {[%clk 0:02:12]}  Nf6 {[%clk 0:02:52]} 9. exf5 {[%clk 0:02:08]}  a6 {[%clk 0:02:51]} 10. Na3 {[%clk 0:02:07]}  Bxf5 {[%clk 0:02:51]} 11. O-O {[%clk 0:02:07]}  O-O {[%clk 0:02:49]} 12. Be3 {[%clk 0:02:04]}  Kh8 {[%clk 0:02:40]} 13. Nc2 {[%clk 0:02:01]}  Qe8 {[%clk 0:02:24]} 14. Nd5 {[%clk 0:01:58]}  Rd8 {[%clk 0:02:19]} 15. b4 {[%clk 0:01:51]}  Bxc2 {[%clk 0:02:08]} 16. Qxc2 {[%clk 0:01:49]}  Nxd5 {[%clk 0:02:06]} 17. cxd5 {[%clk 0:01:48]}  Nxb4 {[%clk 0:01:53]} 18. Qb3 {[%clk 0:01:47]}  a5 {[%clk 0:01:40]} 19. a3 {[%clk 0:01:46]}  Na6 {[%clk 0:01:38]} 20. Qxb7 {[%clk 0:01:40]}  Nc5 {[%clk 0:01:36]} 21. Bxc5 {[%clk 0:01:40]}  dxc5 {[%clk 0:01:36]} 22. Bb5 {[%clk 0:01:39]}  Qf7 {[%clk 0:01:29]} 23. Bc6 {[%clk 0:01:38]}  Bd6 {[%clk 0:01:25]} 24. Qa6 {[%clk 0:01:36]}  Qc7 {[%clk 0:01:20]} 25. Rab1 {[%clk 0:01:34]}  Rb8 {[%clk 0:01:18]} 26. Rxb8 {[%clk 0:01:28]}  Rxb8 {[%clk 0:01:17]} 27. g3 {[%clk 0:01:27]}  h6 {[%clk 0:01:17]} 28. Re1 {[%clk 0:01:25]}  c4 {[%clk 0:00:58]} 29. Qxc4 {[%clk 0:01:22]}  Bxa3 {[%clk 0:00:58]} 30. Qe4 {[%clk 0:01:17]}  Bd6 {[%clk 0:00:56]} 31. Qg6 {[%clk 0:00:58]}  Bb4 {[%clk 0:00:44]} 32. Rb1 {[%clk 0:00:41]}  Qd6 {[%clk 0:00:40]} 33. Qe4 {[%clk 0:00:39]}  Bc3 {[%clk 0:00:32]} 34. Rxb8+ {[%clk 0:00:36]}  Qxb8 {[%clk 0:00:32]} 35. Qg6 {[%clk 0:00:33]}  Bb4 {[%clk 0:00:13]} 36. Bd7 {[%clk 0:00:31]}  Qd6 {[%clk 0:00:09]} 37. Be6 {[%clk 0:00:31]}  Qf8 {[%clk 0:00:01]} 38. Bf5 {[%clk 0:00:26]}  Qg8 {[%clk 0:00:01]} 39. d6 {[%clk 0:00:26]} 1-0


[Site "https://www.chess.com"]

[Event "Titled Tuesday Blitz March 07 Late 2023"]
[White "Burke, Paul"]
[Black "Kujawski, Adam"]
[WhiteFideId "2605767"]
[BlackFideId "1100920"]
[WhiteElo "1902"]
[BlackElo "2054"]
[Result "0-1"]
[Round "05"]
[TimeControl "180+2"]
[Date "2023.03.07"]
[WhiteClock "0:02:09"]
[BlackClock "0:00:54"]

1. e4 {[%clk 0:03:00]}  e5 {[%clk 0:03:00]} 2. Nf3 {[%clk 0:03:00]}  Nc6 {[%clk 0:03:00]} 3. Bc4 {[%clk 0:03:00]}  Nf6 {[%clk 0:03:00]} 4. d4 {[%clk 0:03:00]}  exd4 {[%clk 0:02:59]} 5. O-O {[%clk 0:03:00]}  Nxe4 {[%clk 0:03:00]} 6. Re1 {[%clk 0:02:59]}  d5 {[%clk 0:02:59]} 7. Bxd5 {[%clk 0:02:59]}  Qxd5 {[%clk 0:03:00]} 8. Nc3 {[%clk 0:02:59]}  Qa5 {[%clk 0:03:00]} 9. Nxe4 {[%clk 0:02:58]}  Be6 {[%clk 0:03:00]} 10. Neg5 {[%clk 0:02:55]}  O-O-O {[%clk 0:03:00]} 11. Nxe6 {[%clk 0:02:55]}  fxe6 {[%clk 0:03:01]} 12. Bg5 {[%clk 0:02:53]}  Re8 {[%clk 0:02:32]} 13. Nxd4 {[%clk 0:02:47]}  Qxg5 {[%clk 0:02:04]} 14. Nxc6 {[%clk 0:02:42]}  bxc6 {[%clk 0:02:01]} 15. Qe2 {[%clk 0:02:39]}  Qb5 {[%clk 0:01:43]} 16. c4 {[%clk 0:02:38]}  Qf5 {[%clk 0:01:20]} 17. a3 {[%clk 0:02:22]}  Bc5 {[%clk 0:01:13]} 18. b4 {[%clk 0:02:21]}  Bd4 {[%clk 0:01:12]} 19. Rad1 {[%clk 0:02:16]}  e5 {[%clk 0:01:08]} 20. b5 {[%clk 0:02:16]}  Rhf8 {[%clk 0:01:04]} 21. Rf1 {[%clk 0:02:15]}  c5 {[%clk 0:00:56]} 22. Qc2 {[%clk 0:02:09]}  Qxc2 {[%clk 0:00:54]} 0-1


[Site "https://www.chess.com"]

[Event "Titled Tuesday Blitz March 07 Late 2023"]
[White "Jovic, Stanoje"]
[Black "ritanovikova"]
[WhiteFideId "905020"]
[WhiteElo "2236"]
[BlackElo "2125"]
[Result "1-0"]
[Round "05"]
[TimeControl "180+2"]
[Date "2023.03.07"]
[WhiteClock "0:00:10"]
[BlackClock "0:00:10"]

1. c4 {[%clk 0:03:00]}  c5 {[%clk 0:02:59]} 2. g3 {[%clk 0:03:00]}  Nc6 {[%clk 0:03:00]} 3. Bg2 {[%clk 0:03:00]}  d6 {[%clk 0:02:59]} 4. Nc3 {[%clk 0:02:57]}  Nf6 {[%clk 0:03:00]} 5. Nf3 {[%clk 0:02:57]}  g6 {[%clk 0:03:01]} 6. O-O {[%clk 0:02:57]}  Bg7 {[%clk 0:03:01]} 7. d4 {[%clk 0:02:58]}  O-O {[%clk 0:03:02]} 8. dxc5 {[%clk 0:02:57]}  dxc5 {[%clk 0:03:02]} 9. Bf4 {[%clk 0:02:56]}  a6 {[%clk 0:03:01]} 10. Na4 {[%clk 0:02:42]}  Qa5 {[%clk 0:02:56]} 11. Bd2 {[%clk 0:02:36]}  Qc7 {[%clk 0:02:51]} 12. Nxc5 {[%clk 0:02:34]}  Na5 {[%clk 0:02:48]} 13. Bb4 {[%clk 0:02:16]}  Nxc4 {[%clk 0:02:39]} 14. Rc1 {[%clk 0:02:14]}  b5 {[%clk 0:02:31]} 15. b3 {[%clk 0:02:09]}  a5 {[%clk 0:02:31]} 16. bxc4 {[%clk 0:02:05]}  axb4 {[%clk 0:02:30]} 17. cxb5 {[%clk 0:02:04]}  Qb6 {[%clk 0:02:12]} 18. Nd4 {[%clk 0:02:04]}  Rxa2 {[%clk 0:02:09]} 19. Qb3 {[%clk 0:01:55]}  Rd2 {[%clk 0:01:59]} 20. Qxb4 {[%clk 0:01:49]}  Ne4 {[%clk 0:01:48]} 21. Nxe4 {[%clk 0:01:30]}  Rxd4 {[%clk 0:01:46]} 22. Qxe7 {[%clk 0:01:25]}  Qxb5 {[%clk 0:01:38]} 23. Nf6+ {[%clk 0:01:19]}  Bxf6 {[%clk 0:01:35]} 24. Qxf6 {[%clk 0:01:19]}  Rc4 {[%clk 0:01:22]} 25. e3 {[%clk 0:01:09]}  Be6 {[%clk 0:01:18]} 26. Rxc4 {[%clk 0:01:05]}  Qxc4 {[%clk 0:01:18]} 27. h4 {[%clk 0:01:04]}  h5 {[%clk 0:01:17]} 28. Qd4 {[%clk 0:00:57]}  Qxd4 {[%clk 0:01:15]} 29. exd4 {[%clk 0:00:57]}  Rd8 {[%clk 0:01:16]} 30. d5 {[%clk 0:00:52]}  Bf5 {[%clk 0:01:10]} 31. Rd1 {[%clk 0:00:52]}  Rd6 {[%clk 0:01:10]} 32. f4 {[%clk 0:00:46]}  Kg7 {[%clk 0:01:05]} 33. Kf2 {[%clk 0:00:46]}  Kf6 {[%clk 0:01:05]} 34. Ke3 {[%clk 0:00:46]}  Ke7 {[%clk 0:00:59]} 35. Ra1 {[%clk 0:00:43]}  Rb6 {[%clk 0:00:54]} 36. Rc1 {[%clk 0:00:36]}  Rb3+ {[%clk 0:00:52]} 37. Kd4 {[%clk 0:00:36]}  Bd7 {[%clk 0:00:46]} 38. Rc3 {[%clk 0:00:31]}  Rb2 {[%clk 0:00:46]} 39. Be4 {[%clk 0:00:27]}  Kd6 {[%clk 0:00:43]} 40. Ra3 {[%clk 0:00:25]}  Rb4+ {[%clk 0:00:42]} 41. Ke3 {[%clk 0:00:22]}  Rb6 {[%clk 0:00:42]} 42. Rc3 {[%clk 0:00:20]}  Ra6 {[%clk 0:00:41]} 43. Rb3 {[%clk 0:00:19]}  Bc8 {[%clk 0:00:35]} 44. Rb4 {[%clk 0:00:16]}  Ra3+ {[%clk 0:00:35]} 45. Kd4 {[%clk 0:00:15]}  Rxg3 {[%clk 0:00:35]} 46. Rb6+ {[%clk 0:00:15]}  Ke7 {[%clk 0:00:34]} 47. d6+ {[%clk 0:00:13]}  Kd8 {[%clk 0:00:32]} 48. Rb8 {[%clk 0:00:10]}  Kd7 {[%clk 0:00:31]} 49. Rb6 {[%clk 0:00:09]}  Rg1 {[%clk 0:00:29]} 50. Bd3 {[%clk 0:00:05]}  Rd1 {[%clk 0:00:29]} 51. Ke3 {[%clk 0:00:04]}  Re1+ {[%clk 0:00:21]} 52. Kd4 {[%clk 0:00:04]}  Rd1 {[%clk 0:00:20]} 53. Ke3 {[%clk 0:00:05]}  Re1+ {[%clk 0:00:20]} 54. Kd2 {[%clk 0:00:05]}  Rh1 {[%clk 0:00:20]} 55. Bb5+ {[%clk 0:00:05]}  Kd8 {[%clk 0:00:20]} 56. Rb8 {[%clk 0:00:04]}  Rh2+ {[%clk 0:00:19]} 57. Ke3 {[%clk 0:00:04]}  Rh3+ {[%clk 0:00:18]} 58. Kd4 {[%clk 0:00:04]}  Rh1 {[%clk 0:00:17]} 59. d7 {[%clk 0:00:03]}  Rd1+ {[%clk 0:00:16]} 60. Ke5 {[%clk 0:00:03]}  Rxd7 {[%clk 0:00:15]} 61. Bxd7 {[%clk 0:00:03]}  Kxd7 {[%clk 0:00:15]} 62. Rxc8 {[%clk 0:00:02]}  Kxc8 {[%clk 0:00:13]} 63. Kf6 {[%clk 0:00:03]}  Kd7 {[%clk 0:00:12]} 64. Kxf7 {[%clk 0:00:04]}  Kd6 {[%clk 0:00:12]} 65. Kxg6 {[%clk 0:00:04]}  Ke6 {[%clk 0:00:13]} 66. Kxh5 {[%clk 0:00:04]}  Kf5 {[%clk 0:00:14]} 67. Kh6 {[%clk 0:00:05]}  Kf6 {[%clk 0:00:13]} 68. h5 {[%clk 0:00:05]}  Kf7 {[%clk 0:00:12]} 69. Kg5 {[%clk 0:00:05]}  Kg7 {[%clk 0:00:12]} 70. h6+ {[%clk 0:00:06]}  Kh7 {[%clk 0:00:12]} 71. f5 {[%clk 0:00:07]}  Kg8 {[%clk 0:00:12]} 72. f6 {[%clk 0:00:07]}  Kf7 {[%clk 0:00:12]} 73. Kf5 {[%clk 0:00:08]}  Kf8 {[%clk 0:00:12]} 74. Ke6 {[%clk 0:00:09]}  Kg8 {[%clk 0:00:12]} 75. h7+ {[%clk 0:00:09]}  Kxh7 {[%clk 0:00:11]} 76. f7 {[%clk 0:00:09]}  Kg7 {[%clk 0:00:10]} 77. Ke7 {[%clk 0:00:10]} 1-0


[Site "https://www.chess.com"]

[Event "Titled Tuesday Blitz March 07 Late 2023"]
[White "Pino Perez, Lazaro"]
[Black "Bongo Akanga Ndjila, Barthelemy"]
[WhiteFideId "3517055"]
[BlackFideId "10609431"]
[WhiteElo "2170"]
[BlackElo "1768"]
[Result "1-0"]
[Round "05"]
[TimeControl "180+2"]
[Date "2023.03.07"]
[WhiteClock "0:02:03"]
[BlackClock "0:01:51"]

1. d4 {[%clk 0:03:00]}  d5 {[%clk 0:02:51]} 2. Bf4 {[%clk 0:03:00]}  e6 {[%clk 0:02:50]} 3. e3 {[%clk 0:02:59]}  Nf6 {[%clk 0:02:51]} 4. Nf3 {[%clk 0:02:59]}  Bd6 {[%clk 0:02:51]} 5. Nbd2 {[%clk 0:02:58]}  O-O {[%clk 0:02:50]} 6. c3 {[%clk 0:02:57]}  c5 {[%clk 0:02:50]} 7. Bd3 {[%clk 0:02:55]}  Qc7 {[%clk 0:02:49]} 8. Bxd6 {[%clk 0:02:54]}  Qxd6 {[%clk 0:02:49]} 9. Ne5 {[%clk 0:02:55]}  b6 {[%clk 0:02:40]} 10. f4 {[%clk 0:02:55]}  Bb7 {[%clk 0:02:40]} 11. Qf3 {[%clk 0:02:39]}  Nc6 {[%clk 0:02:38]} 12. g4 {[%clk 0:02:36]}  Ne7 {[%clk 0:02:37]} 13. g5 {[%clk 0:02:32]}  Ne4 {[%clk 0:02:29]} 14. Nxe4 {[%clk 0:02:28]}  dxe4 {[%clk 0:02:29]} 15. Bxe4 {[%clk 0:02:29]}  Bxe4 {[%clk 0:02:29]} 16. Qxe4 {[%clk 0:02:30]}  cxd4 {[%clk 0:02:24]} 17. exd4 {[%clk 0:02:22]}  b5 {[%clk 0:01:55]} 18. h4 {[%clk 0:02:08]}  f6 {[%clk 0:01:52]} 19. gxf6 {[%clk 0:02:05]}  Rxf6 {[%clk 0:01:51]} 20. Qxa8+ {[%clk 0:02:03]} 1-0


[Site "https://www.chess.com"]

[Event "Titled Tuesday Blitz March 07 Late 2023"]
[White "Winkels, Marcel"]
[Black "Tyagi, Kushan"]
[WhiteFideId "1003887"]
[BlackFideId "2040069"]
[WhiteElo "1900"]
[BlackElo "2371"]
[Result "0-1"]
[Round "05"]
[TimeControl "180+2"]
[Date "2023.03.07"]
[WhiteClock "0:00:01"]
[BlackClock "0:00:09"]

1. d4 {[%clk 0:03:00]}  c5 {[%clk 0:02:56]} 2. d5 {[%clk 0:02:59]}  e5 {[%clk 0:02:54]} 3. Nc3 {[%clk 0:02:54]}  d6 {[%clk 0:02:53]} 4. e4 {[%clk 0:02:54]}  a6 {[%clk 0:02:52]} 5. f4 {[%clk 0:02:53]}  exf4 {[%clk 0:02:49]} 6. Bxf4 {[%clk 0:02:52]}  Be7 {[%clk 0:02:49]} 7. Nf3 {[%clk 0:02:42]}  Bg4 {[%clk 0:02:46]} 8. Be2 {[%clk 0:02:34]}  Bxf3 {[%clk 0:02:42]} 9. Bxf3 {[%clk 0:02:33]}  Bg5 {[%clk 0:02:42]} 10. Bg3 {[%clk 0:02:26]}  Bh4 {[%clk 0:02:35]} 11. Qd2 {[%clk 0:02:15]}  Nd7 {[%clk 0:02:27]} 12. O-O-O {[%clk 0:02:11]}  Bg5 {[%clk 0:02:24]} 13. Bf4 {[%clk 0:02:11]}  h6 {[%clk 0:02:16]} 14. h4 {[%clk 0:02:07]}  Bxf4 {[%clk 0:02:14]} 15. Qxf4 {[%clk 0:02:06]}  Ne5 {[%clk 0:02:14]} 16. h5 {[%clk 0:01:48]}  Qg5 {[%clk 0:02:11]} 17. Qxg5 {[%clk 0:01:44]}  hxg5 {[%clk 0:02:12]} 18. Na4 {[%clk 0:01:38]}  b5 {[%clk 0:02:00]} 19. Nc3 {[%clk 0:01:36]}  Nf6 {[%clk 0:01:59]} 20. Rde1 {[%clk 0:01:11]}  Ke7 {[%clk 0:01:47]} 21. Nd1 {[%clk 0:01:06]}  g4 {[%clk 0:01:39]} 22. Be2 {[%clk 0:01:06]}  Rxh5 {[%clk 0:01:37]} 23. Ne3 {[%clk 0:00:59]}  g6 {[%clk 0:01:30]} 24. Rxh5 {[%clk 0:00:50]}  gxh5 {[%clk 0:01:30]} 25. Nf5+ {[%clk 0:00:49]}  Kd7 {[%clk 0:01:29]} 26. Bd1 {[%clk 0:00:37]}  Rh8 {[%clk 0:01:22]} 27. Ng3 {[%clk 0:00:25]}  h4 {[%clk 0:01:20]} 28. Nf1 {[%clk 0:00:25]}  h3 {[%clk 0:01:14]} 29. gxh3 {[%clk 0:00:24]}  Rxh3 {[%clk 0:01:09]} 30. Ne3 {[%clk 0:00:19]}  g3 {[%clk 0:00:46]} 31. Rg1 {[%clk 0:00:17]}  Nxe4 {[%clk 0:00:45]} 32. Nf5 {[%clk 0:00:15]}  Rh2 {[%clk 0:00:33]} 33. c3 {[%clk 0:00:11]}  g2 {[%clk 0:00:31]} 34. Ne3 {[%clk 0:00:10]}  Nd3+ {[%clk 0:00:22]} 35. Kc2 {[%clk 0:00:07]}  Nf4 {[%clk 0:00:17]} 36. Ng4 {[%clk 0:00:05]}  Rh1 {[%clk 0:00:15]} 37. Rxg2 {[%clk 0:00:02]}  Nxg2 {[%clk 0:00:15]} 38. Bf3 {[%clk 0:00:03]}  Rg1 {[%clk 0:00:15]} 39. Bxe4 {[%clk 0:00:02]}  Ne1+ {[%clk 0:00:14]} 40. Kd2 {[%clk 0:00:01]}  Ng2 {[%clk 0:00:09]} 0-1


[Site "https://www.chess.com"]

[Event "Titled Tuesday Blitz March 07 Late 2023"]
[White "Smith, Garrett L"]
[Black "Michalski, Olaf"]
[WhiteFideId "2024829"]
[BlackFideId "1106740"]
[WhiteElo "2256"]
[BlackElo "2173"]
[Result "1-0"]
[Round "05"]
[TimeControl "180+2"]
[Date "2023.03.07"]
[WhiteClock "0:01:02"]
[BlackClock "0:00:03"]

1. e4 {[%clk 0:03:00]}  c5 {[%clk 0:02:59]} 2. a3 {[%clk 0:03:00]}  e6 {[%clk 0:02:52]} 3. b4 {[%clk 0:03:00]}  cxb4 {[%clk 0:02:53]} 4. axb4 {[%clk 0:03:01]}  Bxb4 {[%clk 0:02:53]} 5. Bb2 {[%clk 0:03:02]}  Nf6 {[%clk 0:02:48]} 6. e5 {[%clk 0:03:02]}  Nd5 {[%clk 0:02:47]} 7. c4 {[%clk 0:03:02]}  Ne7 {[%clk 0:02:43]} 8. Qg4 {[%clk 0:03:02]}  Nf5 {[%clk 0:02:33]} 9. Nf3 {[%clk 0:02:49]}  O-O {[%clk 0:02:12]} 10. Bd3 {[%clk 0:02:34]}  g6 {[%clk 0:01:44]} 11. Nc3 {[%clk 0:02:29]}  h5 {[%clk 0:01:38]} 12. Qf4 {[%clk 0:02:25]}  d6 {[%clk 0:00:58]} 13. Bxf5 {[%clk 0:02:03]}  exf5 {[%clk 0:00:53]} 14. Nd5 {[%clk 0:01:42]}  dxe5 {[%clk 0:00:13]} 15. Qh6 {[%clk 0:01:09]}  Nd7 {[%clk 0:00:03]} 16. Ng5 {[%clk 0:01:02]} 1-0


[Site "https://www.chess.com"]

[Event "Titled Tuesday Blitz March 07 Late 2023"]
[White "Von Buelow, Georg"]
[Black "Kohler, Aran"]
[WhiteFideId "4620658"]
[BlackFideId "1002856"]
[WhiteElo "2096"]
[BlackElo "2230"]
[Result "1-0"]
[Round "05"]
[TimeControl "180+2"]
[Date "2023.03.07"]
[WhiteClock "0:01:11"]
[BlackClock "0:01:08"]

1. e4 {[%clk 0:02:56]}  c6 {[%clk 0:02:59]} 2. d4 {[%clk 0:02:56]}  d5 {[%clk 0:03:00]} 3. e5 {[%clk 0:02:57]}  c5 {[%clk 0:03:00]} 4. dxc5 {[%clk 0:02:56]}  Nc6 {[%clk 0:02:59]} 5. a3 {[%clk 0:02:54]}  Nxe5 {[%clk 0:02:57]} 6. b4 {[%clk 0:02:54]}  a6 {[%clk 0:02:53]} 7. Bb2 {[%clk 0:02:53]}  Nc6 {[%clk 0:02:47]} 8. Bd3 {[%clk 0:02:43]}  e6 {[%clk 0:02:45]} 9. Nf3 {[%clk 0:02:42]}  Nf6 {[%clk 0:02:45]} 10. O-O {[%clk 0:02:42]}  Be7 {[%clk 0:02:45]} 11. Nbd2 {[%clk 0:02:42]}  O-O {[%clk 0:02:45]} 12. c4 {[%clk 0:02:39]}  h6 {[%clk 0:02:39]} 13. Re1 {[%clk 0:02:33]}  Re8 {[%clk 0:02:28]} 14. Qc2 {[%clk 0:02:29]}  Bf8 {[%clk 0:02:24]} 15. cxd5 {[%clk 0:02:22]}  Nxd5 {[%clk 0:02:12]} 16. Nc4 {[%clk 0:02:10]}  Ndxb4 {[%clk 0:01:54]} 17. axb4 {[%clk 0:02:03]}  Nxb4 {[%clk 0:01:54]} 18. Bh7+ {[%clk 0:02:04]}  Kh8 {[%clk 0:01:54]} 19. Qb1 {[%clk 0:02:03]}  Bxc5 {[%clk 0:01:52]} 20. Nce5 {[%clk 0:01:54]}  Qe7 {[%clk 0:01:38]} 21. Bg6 {[%clk 0:01:49]}  Rf8 {[%clk 0:01:39]} 22. Bxf7 {[%clk 0:01:49]}  Bxf2+ {[%clk 0:01:26]} 23. Kxf2 {[%clk 0:01:44]}  Qc5+ {[%clk 0:01:26]} 24. Bd4 {[%clk 0:01:39]}  Qc2+ {[%clk 0:01:26]} 25. Kg1 {[%clk 0:01:38]}  Rxf7 {[%clk 0:01:12]} 26. Nxf7+ {[%clk 0:01:35]}  Kg8 {[%clk 0:01:12]} 27. Qxb4 {[%clk 0:01:12]}  Kxf7 {[%clk 0:01:10]} 28. Ne5+ {[%clk 0:01:12]}  Kg8 {[%clk 0:01:08]} 29. Qe7 {[%clk 0:01:11]} 1-0


[Site "https://www.chess.com"]

[Event "Titled Tuesday Blitz March 07 Late 2023"]
[White "Carlsen, Magnus"]
[Black "Bortnyk, Mykola"]
[WhiteFideId "1503014"]
[BlackFideId "14120836"]
[WhiteElo "2852"]
[BlackElo "2582"]
[Result "0-1"]
[Round "06"]
[TimeControl "180+2"]
[Date "2023.03.07"]
[WhiteClock "0:00:02"]
[BlackClock "0:00:16"]

1. e4 {[%clk 0:03:00]}  Nf6 {[%clk 0:03:00]} 2. e5 {[%clk 0:03:00]}  Nd5 {[%clk 0:03:00]} 3. d4 {[%clk 0:03:00]}  d6 {[%clk 0:03:01]} 4. Nf3 {[%clk 0:03:00]}  Nc6 {[%clk 0:03:01]} 5. c4 {[%clk 0:02:47]}  Nb6 {[%clk 0:03:01]} 6. exd6 {[%clk 0:02:48]}  exd6 {[%clk 0:03:01]} 7. d5 {[%clk 0:02:48]}  Ne5 {[%clk 0:02:54]} 8. Be2 {[%clk 0:02:11]}  Nxf3+ {[%clk 0:02:48]} 9. Bxf3 {[%clk 0:02:10]}  Be7 {[%clk 0:02:37]} 10. O-O {[%clk 0:02:05]}  O-O {[%clk 0:02:37]} 11. Qd3 {[%clk 0:01:53]}  g6 {[%clk 0:02:32]} 12. Nc3 {[%clk 0:01:53]}  Bf6 {[%clk 0:02:30]} 13. Re1 {[%clk 0:01:47]}  Bf5 {[%clk 0:02:28]} 14. Be4 {[%clk 0:01:47]}  Re8 {[%clk 0:02:14]} 15. Bh6 {[%clk 0:01:34]}  Bxe4 {[%clk 0:01:56]} 16. Rxe4 {[%clk 0:01:32]}  Nd7 {[%clk 0:01:52]} 17. Rae1 {[%clk 0:01:31]}  Rxe4 {[%clk 0:01:39]} 18. Qxe4 {[%clk 0:01:21]}  Bg7 {[%clk 0:01:19]} 19. Bxg7 {[%clk 0:01:21]}  Kxg7 {[%clk 0:01:20]} 20. g3 {[%clk 0:01:10]}  a6 {[%clk 0:01:17]} 21. Kg2 {[%clk 0:01:09]}  Qf6 {[%clk 0:01:10]} 22. Qe3 {[%clk 0:01:03]}  h5 {[%clk 0:00:56]} 23. h3 {[%clk 0:00:52]}  b5 {[%clk 0:00:48]} 24. cxb5 {[%clk 0:00:46]}  axb5 {[%clk 0:00:49]} 25. a3 {[%clk 0:00:46]}  Nb6 {[%clk 0:00:47]} 26. Re2 {[%clk 0:00:45]}  Nc4 {[%clk 0:00:36]} 27. Qd3 {[%clk 0:00:46]}  Ne5 {[%clk 0:00:35]} 28. Qe4 {[%clk 0:00:45]}  Ra5 {[%clk 0:00:31]} 29. Re3 {[%clk 0:00:34]}  Nc4 {[%clk 0:00:31]} 30. Rf3 {[%clk 0:00:34]}  Qe5 {[%clk 0:00:30]} 31. Qxe5+ {[%clk 0:00:34]}  Nxe5 {[%clk 0:00:31]} 32. Rf4 {[%clk 0:00:32]}  Nd3 {[%clk 0:00:30]} 33. Rd4 {[%clk 0:00:21]}  Nxb2 {[%clk 0:00:30]} 34. Rb4 {[%clk 0:00:21]}  Nd3 {[%clk 0:00:30]} 35. Rb3 {[%clk 0:00:17]}  Nc5 {[%clk 0:00:30]} 36. Rxb5 {[%clk 0:00:17]}  Rxa3 {[%clk 0:00:31]} 37. Ne2 {[%clk 0:00:17]}  Ra2 {[%clk 0:00:30]} 38. Kf3 {[%clk 0:00:17]}  Nd3 {[%clk 0:00:25]} 39. Ke3 {[%clk 0:00:13]}  Ra3 {[%clk 0:00:24]} 40. h4 {[%clk 0:00:05]}  Ne5+ {[%clk 0:00:18]} 41. Ke4 {[%clk 0:00:06]}  f5+ {[%clk 0:00:17]} 42. Kf4 {[%clk 0:00:02]}  Rf3+ {[%clk 0:00:15]} 43. Kg5 {[%clk 0:00:02]}  Nf7# {[%clk 0:00:16]} 0-1


[Site "https://www.chess.com"]